Cogmind - Beta 14 @@@ ROGUE MODE // 2024.10.15 @ 02:41:14 Player: Cereal Killer Result: Destroyed by G-67 Veteran with Plasma Rifle Performance ------------- Evolutions (5) 2500 Regions Visited (11) 2200 Robots Destroyed (110) 550 Value Destroyed (4719) 4719 Prototype IDs (29) 580 Alien Tech Used (0) 0 Bonus (3578) 3578 TOTAL SCORE: 14127 Bonus ------- Triggered High Security 1000 High Alert Combat Kills 1475 Follower Combat Kills 1707 Network Hubs Disabled 200 Registered with UFD 300 Built Enhanced Grunts 300 Met R17 at Cetus 500 Friendly Fire -1904 Cogmind --------- Core Integrity 0/1000 Matter 300/300 Energy 91/100 System Corruption 3% Temperature Cool (30) Movement Core (50) Location -5/Factory Parts ------- > --- POWER (1) -------- (None) > --- PROPULSION (6) --- (None) > --- UTILITY (8) ------ Core Analyzer > --- WEAPON (2) ------- (None) > --- INVENTORY (5) ---- Meta Core Core Analyzer Improved Thermal Shield Advanced Variable Charge Gun CPS Tube (2) Peak State ------------ > --- POWER ------------ Quantum Reactor > --- PROPULSION ------- Improved Hover Unit Gravmag System Gravmag System Gravmag Array Makeshift Hover Unit > --- UTILITY ---------- Advanced Heat Sink Large Storage Unit Core Analyzer Centrium Medium Armor Plating Improved Hacking Suite Improved System Shield > --- WEAPON ----------- Advanced KE Penetrator Advanced KE Penetrator > --- INVENTORY -------- Quantum Reactor Meta Core Scrap Suit Advanced Heat Sink Hardened Medium Armor Plating Improved Medium Armor Plating Advanced Variable Charge Gun Advanced Variable Charge Gun CPS Tube CPS Tube Junk Cannon Ripper Vortex Trap [Rating: 87] Favorites ----------- Power Angular Momentum Engine Engine Angular Momentum Engine Reactor Quantum Reactor Propulsion Wheel Treads Light Treads Leg Armored Leg Wheel Wheel Hover Unit Makeshift Hover Unit Flight Unit Field Propulsion Drive Utility Large Storage Unit Device Advanced Heat Sink Storage Large Storage Unit Processor Core Analyzer Hackware Hacking Suite Protection Makeshift Thermal Plating Weapon Junk Cannon Energy Gun EM Pulse Gun Ballistic Gun Advanced KE Penetrator Ballistic Cannon Magnetic Acceleration Cannon Launcher Rocket Launcher Special Weapon Junk Cannon Slashing Weapon Greatsword Build | -11 -10 -10 -10 -8 -8 -6 -6 -6 -6 -6 -5 ------- Run | Yrd Mat Min Sub Rec Scr Fac Ext Cet Arc Hub Fac Slots Evolved 10 | . . . . . . 8 . . . . 2 Power . | . . . . . . . . . . . . Propulsion 4 | . . . . . . 4 . . . . . Utility 6 | . . . . . . 4 . . . . 2 Weapon . | . . . . . . . . . . . . Parts Attached 117 | 6 3 1 25 5 4 12 4 11 9 5 32 Power 10 | 1 1 . 3 1 1 . . 1 . . 2 Engine 7 | 1 1 . 3 1 1 . . . . . . Core . | . . . . . . . . . . . . Reactor 3 | . . . . . . . . 1 . . 2 Propulsion 35 | 2 . . 4 2 . 7 1 3 3 . 13 Treads 4 | . . . 2 1 . . . 1 . . . Leg 5 | . . . . . . . . 1 . . 4 Wheel 8 | 2 . . 2 1 . 1 . . . . 2 Hover 15 | . . . . . . 6 1 1 3 . 4 Flight 3 | . . . . . . . . . . . 3 Utility 34 | 1 2 . 5 . 1 4 3 2 5 3 8 Device 12 | . . . 4 . . . 1 1 2 1 3 Storage 3 | 1 1 . . . 1 . . . . . . Processor 1 | . . . . . . . . . 1 . . Hackware 6 | . . . . . . 2 1 . 2 . 1 Protection 12 | . 1 . 1 . . 2 1 1 . 2 4 Artifact . | . . . . . . . . . . . . Weapon 38 | 2 . 1 13 2 2 1 . 5 1 2 9 Energy Gun 9 | 1 . . 4 . . . . 1 . . 3 Energy Cannon . | . . . . . . . . . . . . Ballistic Gun 9 | 1 . . 3 1 . . . 3 . 1 . Ballistic Cannon 2 | . . . . . . . . . . . 2 Launcher 5 | . . 1 2 1 . . . . . . 1 Special Weapon 7 | . . . 1 . 1 1 . 1 . 1 2 Impact Weapon . | . . . . . . . . . . . . Slashing Weapon 6 | . . . 3 . 1 . . . 1 . 1 Piercing Weapon . | . . . . . . . . . . . . Special Melee Weapon . | . . . . . . . . . . . . Unidentified Prototypes 7 | . . . . . 1 1 . 4 . . 1 Parts Lost 42 | . 1 . 5 3 . 1 1 3 . 10 18 Power 3 | . 1 . 1 . . . . . . . 1 Propulsion 19 | . . . 1 2 . . 1 2 . 5 8 Utility 14 | . . . 2 . . 1 . 1 . 3 7 Weapon 6 | . . . 1 1 . . . . . 2 2 Highest Loss Streak 16 | . 1 . 3 3 . 1 1 3 . 9 16 To Critical Strikes . | . . . . . . . . . . . . Average Slot Usage (%) 85 | . 92 100 99 84 81 89 84 84 87 89 59 Engine 8 | . 9 14 13 9 14 6 6 . . . . Reactor 1 | . . . . . . . . 5 6 5 3 Treads 5 | . . . 19 . . . . . . . . Wheel 11 | . 28 28 8 28 28 12 . . . . 4 Hover 9 | . . . . . . 26 32 28 27 30 3 Device 3 | . . . 6 . . . 4 1 6 5 3 Storage 10 | . 24 14 14 14 14 6 6 6 6 6 4 Processor 1 | . . . . . . . . . . 6 5 Hackware 4 | . . . . . . 12 12 13 13 6 6 Protection 10 | . 1 14 6 14 14 18 15 17 11 11 6 Energy Gun 1 | . 14 9 1 . . . . 2 . . . Ballistic Gun 7 | . 14 14 17 7 . . . 5 7 12 . Launcher 1 | . . 4 2 11 . . . . . . . Special Weapon 3 | . . . 2 . 5 5 6 1 . . 3 Slashing Weapon 2 | . . . 3 . 5 . . . 4 . . Peak Build Rating 87 | 6 7 9 18 15 30 69 72 82 83 87 86 Average Rating 38 | 3 6 8 14 13 23 58 69 75 77 82 59 On Entrance 32 | . 6 7 9 12 12 30 66 70 73 83 18 Naked Turns . | . . . . . . . . . . . . Heaviest Build 83 | 13 33 31 34 38 51 67 67 69 64 73 83 Greatest Support 68 | 20 20 20 40 20 20 68 68 63 57 57 51 Greatest Overweight (x) 11 | . 1 1 1 1 2 3 1 2 1 2 11 Average Overweight (x) 1 | . . 1 . 1 1 1 . . . . 2 Largest Inventory Capacity 15 | 8 15 15 15 15 15 15 15 15 15 15 15 Average Capacity 14 | 6 13 15 15 15 15 15 15 15 15 15 14 Most Carried 15 | 5 7 10 15 14 15 14 15 15 15 15 15 Average Carried 13 | 3 5 8 14 11 13 11 14 14 14 14 13 Final Capacity 15 | 8 15 15 15 15 15 15 15 15 15 15 5 Final Carried 15 | 4 7 10 14 11 15 12 15 15 15 15 5 Class Distribution -------------------- 61% | Mutant 16% | Scavenger-Mutant 10% | Commander-Mutant 9% | Derelict-Mutant Dominant Class ---------------- Mutant | -10/Materials Mutant | -10/Mines Mutant | -10/Subcaves Mutant | -8/Recycling Mutant | -8/Scraptown Derelict-Mutant | -6/Factory Derelict-Mutant | -6/Extension Commander-Mutant | -6/Cetus Scavenger-Mutant | -6/Archives Scavenger-Mutant | -6/Hub_04(d) Scavenger-Mutant | -5/Factory Resources | -11 -10 -10 -10 -8 -8 -6 -6 -6 -6 -6 -5 ----------- Run | Yrd Mat Min Sub Rec Scr Fac Ext Cet Arc Hub Fac Matter Collected 2124 | 204 76 18 511 118 108 135 104 110 152 137 451 Remotely . | . . . . . . . . . . . . Salvage Created 4711 | . 279 18 507 245 . 339 1024 162 131 856 1150 Parts 183 | . 12 4 39 6 . 13 20 6 13 32 38 Haulers Intercepted . | . . . . . . . . . . . . Recyclers Shooed . | . . . . . . . . . . . . Parts Field Recycled . | . . . . . . . . . . . . Retrieved Matter . | . . . . . . . . . . . . Parts Self-Destructed 12 | . . . 12 . . . . . . . . Prevented . | . . . . . . . . . . . . Kills | -11 -10 -10 -10 -8 -8 -6 -6 -6 -6 -6 -5 ------- Run | Yrd Mat Min Sub Rec Scr Fac Ext Cet Arc Hub Fac Combat Hostiles Destroyed 79 | . 6 . 17 4 . 6 18 3 . 5 20 Melee 1 | . . . . . . . . . . . 1 Guns 16 | . 2 . 9 . . . . . . 5 . Cannons 21 | . . . 1 . . 3 7 1 . . 9 AOE 19 | . 4 . 7 4 . . . . . . 4 Classes Destroyed 17 | . 2 1 4 3 . . 3 . . 3 1 Worker 10 | . . . . . . . . . . 9 1 Builder 4 | . . . . 1 . 1 . . . 2 . Tunneler 1 | . . 1 . . . . . . . . . Recycler 3 | . . . . 1 . . . . . 1 1 Operator 5 | . 1 . . . . . . . 4 . . Drone 5 | . . . . . . . . . . 5 . Turret 2 | . . . 2 . . . . . . . . Watcher 4 | . . . . . . . . . . 3 1 Swarmer 8 | . . . 4 . . . . . . . 4 Grunt 36 | . 6 . 2 2 . 6 11 . . 2 7 Brawler 1 | . . . . . . . . . . . 1 Duelist 2 | . . . . . . . . . . . 2 Sentry 9 | . . . 1 . . . 3 . . 3 2 Hunter 3 | . . . . . . . 2 . . . 1 Programmer 5 | . . . . 2 . . . . . . 3 Behemoth 1 | . . . . . . . 1 . . . . Cetus Guard 3 | . . . . . . . . 3 . . . Subdweller 10 | . . . 10 . . . . . . . . Thug 1 | . . . . . . . . . . 1 . Butcher 1 | . . . . . . . 1 . . . . Guerrilla 1 | . . . . . . . . . . 1 . Best Kill Streak 14 | . 4 1 5 6 . 5 4 3 2 14 4 Combat Bots Only 4 | . 4 . 3 4 . 4 4 3 . 2 4 Max Kills in Single Turn 17 | . 4 1 2 4 . 1 1 1 1 17 4 Gunslinging . | . . . . . . . . . . . . Exploded 4 | . 4 . 2 3 . . . . . . 4 Melee 1 | . . . . . . . . . . . 1 Uniques/NPCs Destroyed . | . . . . . . . . . . . . Combat | -11 -10 -10 -10 -8 -8 -6 -6 -6 -6 -6 -5 -------- Run | Yrd Mat Min Sub Rec Scr Fac Ext Cet Arc Hub Fac Hostile Shots Fired 757 | . 25 . 126 13 . 13 89 38 5 153 295 Missed 279 | . 9 . 49 4 . 5 46 12 1 62 91 Damage Taken 8688 | . 254 . 1043 136 . 137 466 632 97 1912 4011 Core 1644 | . 54 . 129 45 . . 44 39 . 325 1008 Absorbed by Shields 233 | . . . . . . . 172 61 . . . Ignored by Resistances 137 | . . . 46 . . 16 51 24 . . . Regen/Repaired (Parts) 45 | . . . . . . . . . . . 45 Core Remaining (%) 53 | 100 . . . . 8 . . . . 52 . Volleys Fired 255 | . 12 2 82 2 . 11 42 16 6 29 53 Largest 2 | . 2 1 2 2 . 1 1 1 2 2 2 Hottest 125 | . 60 33 125 60 . . . . 70 70 122 Shots Fired 365 | . 24 2 136 4 . 11 42 17 12 56 61 Gun 207 | . 24 . 105 2 . . . 1 12 55 8 Cannon 20 | . . . . . . . . . . . 20 Launcher 21 | . . 2 17 2 . . . . . . . Special 117 | . . . 14 . . 11 42 16 . 1 33 Kinetic 197 | . 12 . 93 4 . . . 1 12 55 20 Thermal 32 | . . . 24 . . . . . . . 8 Explosive 19 | . . 2 17 . . . . . . . . Electromagnetic 14 | . 12 . 2 . . . . . . . . Impact 103 | . . . . . . 11 42 16 . 1 33 Robot Hit Streak 24 | . 14 . 24 1 . 5 9 5 3 7 12 Robot Miss Streak 4 | . 1 . 2 1 . 1 2 2 4 2 2 Penetration Max 1 | . . . . . . . . . 1 1 . Secondary Targets 1 | . 1 . . . . . . . . . . Max Gunslinging Chain 1 | . 1 . . . . . . . . . . Shots Hit Robots 233 | . 20 . 69 2 . 9 30 13 12 29 49 Core Hits 144 | . 11 1 40 8 . 2 6 3 6 44 23 Critical Kills 3 | . . . . . . 1 1 . . 1 . Critical Parts Destroyed 28 | . . . . . . 1 8 3 2 8 6 Critical Strikes 33 | . . . . . . 2 9 4 2 9 7 Destroy 10 | . . . . . . . . . 2 8 . Smash 23 | . . . . . . 2 9 4 . 1 7 Melee Attacks 23 | . . . 13 . . . . . 6 . 4 Impact . | . . . . . . . . . . . . Slashing 23 | . . . 13 . . . . . 6 . 4 Piercing . | . . . . . . . . . . . . Sneak Attacks 6 | . . . . . . . . . 4 . 2 Combat Hostiles . | . . . . . . . . . . . . Follow-up Attacks . | . . . . . . . . . . . . Damage Inflicted 13832 | . 401 47 1752 388 . 829 2461 900 729 3359 2966 Guns 2497 | . 217 . 883 10 . . . 24 221 1027 115 Cannons 417 | . . . . . . . . . . . 417 Explosions 4163 | . 184 47 845 378 . . . . . 2300 409 Melee 738 | . . . . . . . . . 508 . 230 Ramming 6 | . . . . . . . . . . . 6 Kinetic 2913 | . 64 . 772 388 . . . 24 221 1027 417 Thermal 423 | . 184 . 124 . . . . . . . 115 Explosive 1301 | . . 47 845 . . . . . . . 409 Electromagnetic 2464 | . 153 . 11 . . . . . . 2300 . Impact 5987 | . . . . . . 829 2461 876 . 32 1789 Slashing 738 | . . . . . . . . . 508 . 230 Piercing . | . . . . . . . . . . . . Highest Corruption 19 | . . . . 2 . 3 3 3 3 19 3 Average Corruption 3 | . . . . 1 . 3 3 3 2 9 2 Corruption Purged 3 | . . . . . . . . . 3 . . Corruption Blocked . | . . . . . . . . . . . . Effects 25 | . . . . 1 . 2 9 6 3 4 . Message Errors 5 | . . . . 1 . . 1 1 1 1 . Matter Fused 8 | . . . . . . . 5 2 1 . . Heat Flow Errors 2 | . . . . . . . 1 . 1 . . Energy Discharges 3 | . . . . . . 1 . 1 . 1 . Parts Rejected 1 | . . . . . . . . 1 . . . Data Loss (minor) 4 | . . . . . . 1 2 . . 1 . Misfires 1 | . . . . . . . . 1 . . . Weapon Failures 1 | . . . . . . . . . . 1 . Overload Shots . | . . . . . . . . . . . . Overflow Damage 2875 | . 21 . 7 28 . 238 1060 263 129 238 891 Projectiles 2447 | . . . . . . 238 1060 263 . 32 854 Explosions 299 | . 21 . 7 28 . . . . . 206 37 Melee 129 | . . . . . . . . . 129 . . Knockbacks 36 | . . . . . . 5 14 1 . . 16 Impact 28 | . . . . . . 4 13 1 . . 10 Kinetic 6 | . . . . . . . . . . . 6 Secondary 2 | . . . . . . 1 1 . . . . Self-Inflicted Damage 248 | . 52 . 33 . . . . . . 102 61 Shots 5 | . 1 . 2 . . . . . . 1 1 Rammed 1 | . . . . . . . . . . 1 . Targets Rammed 5 | . . . . . . . . . . 1 4 Kicked 4 | . . . . . . . . . . . 4 Crushed . | . . . . . . . . . . . . Highest Temperature 316 | . 132 . 3 30 . 62 316 7 204 203 87 Average Temperature 61 | . 57 . 2 17 . 29 56 4 73 105 35 Received Heat Transfer 2288 | . 111 . 348 . . 108 437 102 . 306 876 Siege Activations . | . . . . . . . . . . . . Robots Corrupted 26 | . . . . . . 3 11 2 . 3 7 Combat Hostiles 21 | . . . . . . 3 10 2 . . 6 Parts Fried 33 | . . . . . . 5 13 1 . 8 6 Impact Corruptions 57 | . . . . . . 6 23 4 . 1 23 Robots Melted . | . . . . . . . . . . . . Combat Hostiles . | . . . . . . . . . . . . Parts Melted 2 | . . . . . . . 1 . . . 1 Heat Transferred 697 | . 200 . 275 . . . . . . . 222 Parts Sabotaged 5 | . . . . . . . . . . . 5 Parts Stolen . | . . . . . . . . . . . . Parts Stripped . | . . . . . . . . . . . . Power Chain Reactions 1 | . 1 . . . . . . . . . . Alert | -11 -10 -10 -10 -8 -8 -6 -6 -6 -6 -6 -5 ------- Run | Yrd Mat Min Sub Rec Scr Fac Ext Cet Arc Hub Fac Peak Influence 1874 | . 182 82 . 186 . 248 1361 1017 592 1874 1770 Initial 1100 | . . 70 . 74 . . 116 761 326 207 1100 Average 756 | . 94 74 . 147 . 146 697 933 548 901 1302 Maximum Alert Level 5 | . . . . . . 1 4 3 2 5 5 Low Security (%) 25 | 100 100 100 . 100 . 59 20 . . . . Level 1 10 | . . . . . . 40 12 . 10 31 . Level 2 7 | . . . . . . . 11 . 89 5 . Level 3 26 | . . . . . . . 33 100 . 38 14 Level 4 23 | . . . . . . . 22 . . 7 67 Level 5 . | . . . . . . . . . . 2 . High Security 6 | . . . . . . . . . . 14 17 Max Security . | . . . . . . . . . . . . Squads Dispatched 26 | . . . . . . 4 4 . . 8 10 Investigation 9 | . . . . . . 4 3 . . . 2 Extermination 1 | . . . . . . . . . . . 1 Reinforcement 9 | . . . . . . . 1 . . 8 . Assault 6 | . . . . . . . . . . . 6 Garrison 1 | . . . . . . . . . . . 1 Intercept . | . . . . . . . . . . . . Searches Triggered . | . . . . . . . . . . . . Construction Impeded 2 | . . . . . . . . . . 2 . Haulers Reinforced 1 | . . . . . . . . . . 1 . Active Scanning Responses . | . . . . . . . . . . . . Cargo Convoy Interrupts . | . . . . . . . . . . . . Stealth | -11 -10 -10 -10 -8 -8 -6 -6 -6 -6 -6 -5 --------- Run | Yrd Mat Min Sub Rec Scr Fac Ext Cet Arc Hub Fac Distress Signals 6 | . . . . . . . 1 2 . 3 . Communications Jammed . | . . . . . . . . . . . . Distress Signals . | . . . . . . . . . . . . Times Spotted 189 | . 8 . 22 3 . 8 34 10 6 41 57 Peak Tracking Total 22 | . 5 . 6 3 . 4 6 5 1 15 22 Tactical Retreats 15 | . 1 . 1 . . . 4 . . 3 6 Traps | -11 -10 -10 -10 -8 -8 -6 -6 -6 -6 -6 -5 ------- Run | Yrd Mat Min Sub Rec Scr Fac Ext Cet Arc Hub Fac Traps Triggered 8 | . . . 3 . . 1 2 . . 1 1 Indirectly . | . . . . . . . . . . . . Trap Hack Attempts . | . . . . . . . . . . . . Triggered . | . . . . . . . . . . . . Disarmed . | . . . . . . . . . . . . Reprogrammed . | . . . . . . . . . . . . Reused 1 | . . . . . . . . . . 1 . Traps Extracted . | . . . . . . . . . . . . Installed 1 | . . . . . . . . . . 1 . Triggered 1 | . . . . . . . . . . 1 . Most Traps Carried 1 | . . . . . 1 1 1 1 1 1 . Machines | -11 -10 -10 -10 -8 -8 -6 -6 -6 -6 -6 -5 ---------- Run | Yrd Mat Min Sub Rec Scr Fac Ext Cet Arc Hub Fac Machines Disabled 34 | . . . 5 . . . . . 4 22 3 Max in Single Turn 16 | . . . 3 . . . . . 1 16 2 Garrison Access 3 | . . . . . . 1 . . . 1 1 Network Hub 1 | . . . . . . . . . . 1 . Machines Repaired . | . . . . . . . . . . . . Machines Dismantled . | . . . . . . . . . . . . Machines Sabotaged . | . . . . . . . . . . . . Overloaded Fab Kills . | . . . . . . . . . . . . Hacking | -11 -10 -10 -10 -8 -8 -6 -6 -6 -6 -6 -5 --------- Run | Yrd Mat Min Sub Rec Scr Fac Ext Cet Arc Hub Fac Machines Accessed 41 | . 2 . 2 3 4 6 13 1 1 5 4 Terminals 27 | . 2 . . 3 . 2 12 1 . 4 3 Fabricators 1 | . . . . . . 1 . . . . . Repair Stations 1 | . . . . . . . . . . . 1 Recycling Units 3 | . . . . . . 2 1 . . . . Scanalyzers . | . . . . . . . . . . . . Garrison Access 2 | . . . . . . 1 . . . 1 . Total Hacks 134 | . 10 . 6 11 25 16 31 1 1 13 20 Successful 76 | . 5 . 6 3 25 7 16 . 1 6 7 Failed 57 | . 4 . . 8 . 9 15 1 . 7 13 Catastrophic 11 | . . . . 2 . 2 4 . . 1 2 Database Lockouts 1 | . 1 . . . . . . . . . . Manual 45 | . 9 . . . . 10 5 1 . 9 11 Terminals 90 | . 10 . . 11 . 8 30 1 . 12 18 Fabricators 2 | . . . . . . 2 . . . . . Repair Stations 2 | . . . . . . . . . . . 2 Recycling Units 5 | . . . . . . 4 1 . . . . Scanalyzers . | . . . . . . . . . . . . Garrison Access 3 | . . . . . . 2 . . . 1 . Terminal Hacks 57 | . 3 . 6 3 25 1 12 . 1 2 4 Record 30 | . . . 5 . 24 . . . 1 . . Part Schematic 4 | . . . . 2 . . 2 . . . . Robot Schematic 1 | . . . . 1 . . . . . . . Robot Analysis 4 | . 2 . . . . . . . . . 2 Prototype ID Bank 2 | . . . . . . . 2 . . . . Open Door 6 | . . . . . . . 6 . . . . Emergency Access Points 1 | . . . . . . . . . . 1 . Machine Index 1 | . . . . . . 1 . . . . . Locate Traps 2 | . 1 . . . . . . . . . 1 Zone Layout 4 | . . . . . . . 2 . . 1 1 Derelict Proto ID Bank 2 | . . . 1 . 1 . . . . . . Fabricator Hacks 2 | . . . . . . 2 . . . . . Network Status 1 | . . . . . . 1 . . . . . Build 1 | . . . . . . 1 . . . . . Repair Station Hacks . | . . . . . . . . . . . . Recycling Unit Hacks . | . . . . . . . . . . . . Scanalyzer . | . . . . . . . . . . . . Garrison Access Hacks 2 | . . . . . . 1 . . . 1 . Seal Access 2 | . . . . . . 1 . . . 1 . Unauthorized Hacks 15 | . 2 . . . . 3 4 . . 3 3 Terminals 11 | . 2 . . . . 1 3 . . 3 2 Botnet 9 | . 1 . . . . 1 3 . . 2 2 Disrupt 2 | . 1 . . . . . . . . 1 . Fabricators . | . . . . . . . . . . . . Repair Stations 4 | . . . . . . 2 1 . . . 1 Patch 1 | . . . . . . . . . . . 1 Recycling Units . | . . . . . . . . . . . . Fedlink 3 | . . . . . . 2 1 . . . . Scanalyzers . | . . . . . . . . . . . . Garrison Access . | . . . . . . . . . . . . Data Cores Recovered 2 | . 1 . . . . . 1 . . . . Used 2 | . 1 . . . . . 1 . . . . Hacking Detections 24 | . 1 . . 3 . 5 8 1 . 3 3 Full Trace Events 7 | . . . . 3 . 2 2 . . . . Feedback Events 1 | . . . . . . 1 . . . . . Hackware Fried 1 | . . . . . . 1 . . . . . Feedback Blocked . | . . . . . . . . . . . . Robot Schematics Acquired 1 | . . . . 1 . . . . . . . Robots Built 2 | . . . . . . 2 . . . . . Authchips . | . . . . . . . . . . . . Time 81 | . . . . . . 81 . . . . . Total Robot Build Rating 2 | . . . . . . 2 . . . . . Part Schematics Acquired 4 | . . . . 2 . . 2 . . . . Parts Built . | . . . . . . . . . . . . Authchips . | . . . . . . . . . . . . Time . | . . . . . . . . . . . . Total Part Build Rating . | . . . . . . . . . . . . Parts Repaired . | . . . . . . . . . . . . Time . | . . . . . . . . . . . . Parts Recycled . | . . . . . . . . . . . . Recycled Matter . | . . . . . . . . . . . . Retrieved Matter . | . . . . . . . . . . . . Retrieved Components . | . . . . . . . . . . . . Parts Scanalyzed . | . . . . . . . . . . . . Part Schematics Acquired . | . . . . . . . . . . . . Parts Damaged . | . . . . . . . . . . . . Bothacking | -11 -10 -10 -10 -8 -8 -6 -6 -6 -6 -6 -5 ------------ Run | Yrd Mat Min Sub Rec Scr Fac Ext Cet Arc Hub Fac Used RIF Installer . | . . . . . . . . . . . . Robots Hacked . | . . . . . . . . . . . . Non-combat . | . . . . . . . . . . . . Combat . | . . . . . . . . . . . . Robot Hacks Applied . | . . . . . . . . . . . . Relay Couplers Released 3 | . . . . . . . . . . 1 2 Machine Destruction 3 | . . . . . . . . . . 1 2 Fabnet Peak Effective % . | . . . . . . . . . . . . Robots Rewired 12 | . . . . 3 . . 9 . . . . Allies Hacked 1 | . . . . 1 . . . . . . . Hacks Repelled . | . . . . . . . . . . . . Allies | -11 -10 -10 -10 -8 -8 -6 -6 -6 -6 -6 -5 -------- Run | Yrd Mat Min Sub Rec Scr Fac Ext Cet Arc Hub Fac Total Allies 31 | . . . . 3 . 2 18 5 . 3 . Largest Group 20 | . . . . 2 2 2 16 20 13 14 . Highest-Rated Group 1029 | . . . . 26 26 26 592 1029 632 669 . Highest-Rated Ally 159 | . . . . 16 16 16 159 159 96 96 . Total Orders 10 | . . . . . . 1 . . . 9 . TUNNEL 1 | . . . . . . 1 . . . . . EXPLORE 9 | . . . . . . . . . . 9 . Ally Attacks 306 | . . . . 3 . 2 85 67 14 135 . Total Damage 8073 | . . . . 48 . 35 2141 1884 382 3583 . Kills 57 | . . . . 1 . . 18 10 4 24 . Allies Corrupted 3 | . . . . . . . . . . 3 . Allies Melted . | . . . . . . . . . . . . Intel | -11 -10 -10 -10 -8 -8 -6 -6 -6 -6 -6 -5 ------- Run | Yrd Mat Min Sub Rec Scr Fac Ext Cet Arc Hub Fac Robot Analysis Total 4 | . 2 . . . . . . . . . 2 Derelict Logs Recovered 3 | . . . . . 3 . . . . . . Drone Launches 19 | . . . . . . . . . . 19 . Drone Recoveries 7 | . . . . . . . . . . 7 . Exploration | -11 -10 -10 -10 -8 -8 -6 -6 -6 -6 -6 -5 ------------- Run | Yrd Mat Min Sub Rec Scr Fac Ext Cet Arc Hub Fac Turns Passed 6914 | 44 261 61 1971 194 1432 335 678 418 193 370 957 Spaces Moved 4899 | 40 229 51 1238 154 1321 264 625 195 113 250 419 Core 56 | 14 . . . . . . . . . . 42 Treads 703 | . . . 703 . . . . . . . . Legs 78 | . . . . . . . . . . . 78 Wheels 2761 | 26 229 51 535 154 1321 163 . . . . 282 Hover 1284 | . . . . . . 101 625 195 113 250 . Flight 17 | . . . . . . . . . . . 17 Fastest Speed 40 | 50 80 95 95 95 95 52 50 50 46 46 40 Average Speed 109 | 69 91 95 131 95 106 100 53 105 96 104 176 Slowest Speed 600 | 80 95 95 160 95 110 125 120 181 115 166 600 Overloaded Moves . | . . . . . . . . . . . . Propulsion Burnouts . | . . . . . . . . . . . . Robots Hopped 1 | . . . . . . . . . . . 1 Cave-ins Triggered . | . . . . . . . . . . . . Exploration Rate (%) 43 | 3 26 7 72 35 77 8 79 63 72 66 13 Regions Visited 11 Branch Regions 8 Pre-discovered Areas 5 | . . . 1 . 4 . . . . . . Known Exits Taken 3 | . . . . . 1 1 . . . 1 . Unknown Exits Taken 8 | 1 1 1 1 1 . . 1 1 1 . . Scrap Searched 4 | . . . 2 . 2 . . . . . . Spaces Dug 7 | . . . 7 . . . . . . . . Terrain Destroyed 361 | . 2 16 96 20 . 2 10 2 2 182 29 Melee . | . . . . . . . . . . . . Projectile 46 | . . . 7 . . 2 10 2 2 15 8 AOE 315 | . 2 16 89 20 . . . . . 167 21 Terrain Rammed . | . . . . . . . . . . . . Walls Destroyed . | . . . . . . . . . . . . Machines Disabled . | . . . . . . . . . . . . Actions | -11 -10 -10 -10 -8 -8 -6 -6 -6 -6 -6 -5 --------- Run | Yrd Mat Min Sub Rec Scr Fac Ext Cet Arc Hub Fac Total 5992 | 55 257 60 1385 199 1350 324 925 393 174 303 567 Wait 391 | . 9 4 7 9 3 19 123 152 33 5 27 Move 4887 | 39 228 50 1237 153 1320 263 624 194 112 250 417 Hop 1 | . . . . . . . . . . . 1 Pick Up 80 | 10 5 3 11 . 14 7 4 6 2 1 17 Fast Attach 26 | . . . 2 . . . 1 8 4 1 10 Attach 58 | 6 2 . 4 5 2 11 1 2 1 3 21 Detach 13 | . . . . 2 . 1 . 2 1 3 4 Swap 33 | . 1 1 19 . 2 1 2 1 4 1 1 Drop 51 | . . . 10 . 9 3 1 12 5 3 8 Fire 255 | . 12 2 82 2 . 11 42 16 6 29 53 Melee 23 | . . . 13 . . . . . 6 . 4 Ram . | . . . . . . . . . . . . Kick 4 | . . . . . . . . . . . 4 Crush . | . . . . . . . . . . . . Escape Stasis 34 | . . . . . . 8 26 . . . . Rewire 129 | . . . . 28 . . 101 . . . . Trap 1 | . . . . . . . . . . 1 . Miscellaneous 6 | . . . . . . . . . . 6 . Route ------- -11/Scrapyard -10/Materials -10/Mines -10/Subcaves (discovered 3 exits: [*Mat x2] / *Rec) -8/Recycling -8/Scraptown (discovered 2 exits: *Fac x2) -6/Factory (discovered 3 exits: [*Low] / *Ext x2) -6/Extension (discovered 2 exits: *Fac / *Cet) -6/Cetus (discovered 2 exits: *Fac / *Arc) -6/Archives -6/Hub_04(d) (discovered 4 exits: *Fac x4) -5/Factory (discovered 3 exits: [*Fac] / Upp x2) History --------- Turn | Location | Event 12 | -11/Scrapyard | Discovered new exit (range 16) 45 | -11/Scrapyard | Entered Materials 251 | -10/Materials | Discovered new exit (range 16) 266 | -10/Materials | Central database locked down 304 | -10/Materials | Build established: Mutant 306 | -10/Materials | Entered Mines 313 | -10/Mines | Received a Rocket Launcher from a helpful Derelict 359 | -10/Mines | Discovered new exit (range 8) 367 | -10/Mines | Entered Subcaves 401 | -10/Subcaves | Visited Clippyterm 404 | -10/Subcaves | Learned location of Section 7 (-2) 404 | -10/Subcaves | Learned Factory fabricator intel 418 | -10/Subcaves | Shifting Twisted Machinery released Piercing Trap 424 | -10/Subcaves | Ambushed by Subdwellers from Twisted Machinery 468 | -10/Subcaves | Shifting Twisted Machinery released Sub. Shrapnel Launcher 478 | -10/Subcaves | Discovered new exit (range 11) 481 | -10/Subcaves | Shifting Twisted Machinery released Sub. Monowheel 626 | -10/Subcaves | Visited 4L-MR0's lab 637 | -10/Subcaves | Found Meta Core 825 | -10/Subcaves | A swath of the cavern ceiling suddenly collapsed 1054 | -10/Subcaves | Disturbed a concealed Subdweller 1517 | -10/Subcaves | Core integrity fell below 50% 1880 | -10/Subcaves | Ambushed by Subdweller buried in earth 1928 | -10/Subcaves | Shifting Twisted Machinery released Mak. Thermal Plating 1956 | -10/Subcaves | Shifting Twisted Machinery released Sub. Monowheel 1987 | -10/Subcaves | Discovered new exit (range 5) 2323 | -10/Subcaves | Discovered new exit (range 16) 2338 | -10/Subcaves | Entered Recycling 2348 | -8/Recycling | Lost 3 parts (1p1n1w) 2404 | -8/Recycling | Core integrity fell below 20% 2435 | -8/Recycling | Lost 3 parts (2n1w) 2503 | -8/Recycling | Scanned before Scraplab entrance 2517 | -8/Recycling | Entered Scraplab 2525 | -8/Recycling | Discovered new exit (range 2) 2532 | -8/Recycling | Entered Scraptown 2532 | -8/Scraptown | Accompanied by 2 allies 2532 | -8/Scraptown | System corruption cleaned by C-Scrubber 2608 | -8/Scraptown | Scanned Subdweller tech in exchange for log data 2609 | -8/Scraptown | Learned Factory emergency access door positions 2610 | -8/Scraptown | Learned 12 Research zone layouts 2659 | -8/Scraptown | Visited UFD Registry 2659 | -8/Scraptown | Registered with UFD as "Spikegunner" 2670 | -8/Scraptown | Visited Shadow of the Wyrm 2688 | -8/Scraptown | Visited Comm Corps 2699 | -8/Scraptown | Visited Cyclists 2709 | -8/Scraptown | Entered Cyclist Reading Room 2734 | -8/Scraptown | Visited Spacefarers 2740 | -8/Scraptown | Visited TADAMA 2753 | -8/Scraptown | Visited IN-MT5's Study 2776 | -8/Scraptown | Visited Cave Peace 2933 | -8/Scraptown | Visited Science Guys 2985 | -8/Scraptown | Visited Observation Area 3011 | -8/Scraptown | Visited Abandonware Association 3031 | -8/Scraptown | Learned abandonware demo "SHUTEYE.EXE" 3031 | -8/Scraptown | Learned abandonware demo "ERRANTS.EXE" 3072 | -8/Scraptown | Delivered Scrap Shield to a Scientist 3132 | -8/Scraptown | Visited Supply Room 3170 | -8/Scraptown | Visited Scrap Suit Storage 3176 | -8/Scraptown | Found Scrap Suit 3206 | -8/Scraptown | Visited Research Penetration Think Tank 3225 | -8/Scraptown | Visited Cartography Club 3307 | -8/Scraptown | Learned location of Testing (-2) 3307 | -8/Scraptown | Learned 16 Materials zone layouts 3307 | -8/Scraptown | Learned 4 Storage zone layouts 3307 | -8/Scraptown | Learned 16 Upper Caves zone layouts 3307 | -8/Scraptown | Learned 24 Upper Caves zone layouts 3307 | -8/Scraptown | Learned 4 Hub_04(d) zone layouts 3307 | -8/Scraptown | Learned 4 Armory zone layouts 3307 | -8/Scraptown | Learned location of 2 exits from Research 3307 | -8/Scraptown | Learned location of 1 exit from Lower Caves 3307 | -8/Scraptown | Learned location of 1 exit from Upper Caves 3307 | -8/Scraptown | Identified exit to Factory 3403 | -8/Scraptown | Visited Chapter 10 3421 | -8/Scraptown | Visited Junk Cannon Lab 3427 | -8/Scraptown | Found Prototype Special Weapon 3430 | -8/Scraptown | Identified Junk Cannon 3454 | -8/Scraptown | Visited Curators Association 3964 | -8/Scraptown | Entered Factory 3964 | -6/Factory | Accompanied by 2 allies 3964 | -6/Factory | Evolved 8 slots: Propulsion x4, Utility x4 3965 | -6/Factory | Identified exit to Extension 3967 | -6/Factory | Loaded intel: 6 fabricator locations 4103 | -6/Factory | Fabricated T-07 Excavator? 4210 | -6/Factory | Discovered new exit (range 6) 4272 | -6/Factory | Build established: Derelict-Mutant 4290 | -6/Factory | Hacking Suite fried by hacking feedback 4294 | -6/Factory | Discovered exit to Extension (range 11) 4299 | -6/Factory | Entered Extension 4331 | -6/Extension | Rescued a captive Derelict 4443 | -6/Extension | Rescued A7 4446 | -6/Extension | Rescued a captive Derelict 4446 | -6/Extension | Rescued a captive Derelict 4459 | -6/Extension | Rescued a captive Derelict 4460 | -6/Extension | Rescued a captive Derelict 4498 | -6/Extension | Spotted B-75 Beast 4509 | -6/Extension | Spotted B-75 Beast 4514 | -6/Extension | Allies destroyed B-75 Beast 4523 | -6/Extension | Destroyed B-75 Beast 4830 | -6/Extension | Rescued a captive Derelict 4831 | -6/Extension | Rescued a captive Derelict 4848 | -6/Extension | Rescued a captive Derelict 4911 | -6/Extension | Discovered new exit (range 10) 4915 | -6/Extension | Discovered new exit (range 6) 4977 | -6/Extension | Entered Cetus 4977 | -6/Cetus | Accompanied by 15 allies (A7) 4982 | -6/Cetus | Acquired a Cetus Manufacturing Module code from A7 4996 | -6/Cetus | Spotted Cetus Guard 4996 | -6/Cetus | Spotted Cetus Guard 4998 | -6/Cetus | Spotted Cetus Guard 4998 | -6/Cetus | Spotted Cetus Guard 4998 | -6/Cetus | Destroyed Cetus Guard 5005 | -6/Cetus | Allies destroyed Cetus Guard 5006 | -6/Cetus | Build established: Commander-Mutant 5008 | -6/Cetus | Destroyed Cetus Guard 5014 | -6/Cetus | Destroyed Cetus Guard 5060 | -6/Cetus | Started Cetus Manufacturing Module 5085 | -6/Cetus | Manufactured an Enhanced Grunt 5110 | -6/Cetus | Manufactured an Enhanced Grunt 5135 | -6/Cetus | Manufactured an Enhanced Grunt 5160 | -6/Cetus | Manufactured an Enhanced Grunt 5185 | -6/Cetus | Manufactured an Enhanced Grunt 5205 | -6/Cetus | Discovered new exit (range 15) 5245 | -6/Cetus | Spotted Cetus Guard 5245 | -6/Cetus | Spotted Cetus Guard 5246 | -6/Cetus | Spotted Cetus Guard 5246 | -6/Cetus | Spotted Cetus Guard 5256 | -6/Cetus | Allies destroyed Cetus Guard 5264 | -6/Cetus | Allies destroyed Cetus Guard 5269 | -6/Cetus | Allies destroyed Cetus Guard 5283 | -6/Cetus | Allies destroyed Cetus Guard 5288 | -6/Cetus | Discovered new exit (range 15) 5294 | -6/Cetus | Met Revision 17 5296 | -6/Cetus | Lost 3 parts (2n1u) 5311 | -6/Cetus | Lost 6 allies 5395 | -6/Cetus | Entered Archives 5395 | -6/Archives | Accompanied by 14 allies (A7) 5490 | -6/Archives | Unable to access archive contents 5505 | -6/Archives | Discovered new exit (range 16) 5588 | -6/Archives | Entered Hub_04(d) 5588 | -6/Hub_04(d) | Accompanied by 11 allies 5589 | -6/Hub_04(d) | Identified exit to Factory 5675 | -6/Hub_04(d) | Allied Derelicts emerged from ambush trap array 5734 | -6/Hub_04(d) | Spotted B-75 Beast 5751 | -6/Hub_04(d) | Allies destroyed B-75 Beast 5764 | -6/Hub_04(d) | Build established: Scavenger-Mutant 5774 | -6/Hub_04(d) | Lost 6 allies 5895 | -6/Hub_04(d) | Network Hub disabled 5902 | -6/Hub_04(d) | Spotted Lightning 5904 | -6/Hub_04(d) | Spotted Lightning 5904 | -6/Hub_04(d) | Spotted Lightning 5906 | -6/Hub_04(d) | High security lockdown imminent 5908 | -6/Hub_04(d) | Discovered exit to Factory (range 15) 5921 | -6/Hub_04(d) | Murdered 4 allies 5923 | -6/Hub_04(d) | System corruption reached 10% 5958 | -6/Hub_04(d) | Entered Factory 5958 | -5/Factory | Evolved 2 slots: Utility x2 5959 | -5/Factory | Identified exit to Upper Caves 5968 | -5/Factory | Lost 10 allies 5988 | -5/Factory | Lost 9 parts (5n2u2w) 6032 | -5/Factory | Discovered new exit (range 5) 6558 | -5/Factory | First assault squad dispatched 6602 | -5/Factory | Garrison activated, responded to threat 6746 | -5/Factory | High security lockdown imminent 6826 | -5/Factory | High security lockdown engaged 6891 | -5/Factory | Core integrity fell below 50% 6911 | -5/Factory | Core integrity fell below 20% 6915 | -5/Factory | Destroyed by G-67 Veteran with Plasma Rifle Last Messages --------------- 06908_ Scrap Suit destroyed. 06908_ C-30 ARC bursts open, deploying its payload. 06908_ G-67 Veteran unfolds itself. 06908_ G-50 Soldier unfolds itself. 06908_ L-41 Fighter unfolds itself. 06908_ I-47 Archangel unfolds itself. 06909_ Dropped Lrg. Storage Unit. 06909_ Dropped CPS Tube. 06909_ Nuclear Pulse Array destroyed. 06910_ L-41 Fighter suffers critical hit (Burn). 06910_ Acquired Meta Core. 06911_ P-70 Sage resets L-41 Fighter, system corruption cleaned. 06911_ Dropped Hvy. Laser. 06912_ Acquired Adv. Variable Charge Gun. 06912_ Matter Pump disabled. 06914_ Imp. System Shield destroyed. 06914_ Matter Pump disabled. 06915_ Nuclear Pulse Array destroyed. Map ----- +----------------------------------------------------+ | ?????????????????????????????????????????????????? | | ?????????????????????????????????????????????????? | | ????????????????? ????????????????????????????? | | ???????????????# ????????????????????????????? | | ???????????????# #???????????????????????????? | | ???????????????# #???????????????????????????? | | ???????????????# #???????????????????????????? | | ???????????????# #???????????????????????????? | | ?????????# ???# #???????????????????????????? | | ?????????# ???# +???????????????????????????? | | ?????????# ??# #???????????????????????????? | | ?????????# ??# #???????????????????????????? | | ?????????+ ### ###########?????????????????? | | ?????????# #????????????????? | | ?????????# ! ???????????????? | | ?????????# !%* ????????????????? | | ?????????# | l""" ""????????????????? | | ?????????# *| [ %""g ""????????????????? | | ???????# !p![l %"" """???????????????? | | ??###?# ===s g %i ????????????? | | ##T #######g sg=lb """ """ """???????????????? | | g g %"" """ """ ??????????????? | | " ig g g """ """ """ """ "?????????? | | "%" gg s l ????????? | | " "Y" ????????? | | %""" @ ????????? | | ###########%####+##;##########+######????????????? | | ??????????# % " #?????????????????????????? | | ########### % #?????????????????????????? | | # = #?????????????????????????? | | #/%! #?????????????????????????? | | # %% #?????????????????????????? | | % #! * #?????????????????????????? | | """" """"=# [ #?????????????????????????? | | """" """"%# #?????????????????????????? | | """" """"%+% #?????????????????????????? | | """"%""" %# #?????????????????????????? | | """" "" " # #?????????????????????????? | | """"%"""" # #?????????????????????????? | | """" """" ##############?????????????????????????? | | %" ! /% #?##???????????????????????????????????? | | ######+#############?????????????????????????????? | | ^ ! ""????????????????????????????? | | !""" ???????????????????????????? | | ??????????????????????????? | | ^ ??????????????????????????? | | ^ ?????????????????????????? | | ^ ?????????????????????????? | | % """????????????????????????????? | | ######+######### """????????????????????????????? | +----------------------------------------------------+ Best States ------------- Heat Dissipation 59 Energy Generation 25 Energy Capacity 350 Matter Stores 300 Matter Capacity 300 Sight Range 21 Robot Scan Range 15 Terrain Scan Range 16 Terrain Scan Density 10 Armor Coverage 825 Resistance: TH 10 Evasion (%) 55 Core Analysis 6 Recoil Reduction 2 Offensive Hacking 20 Defensive Hacking 12 Item Schematics ----------------- Adv. ECM Suite | -8/Recycling | Hacked Lgt. Nuclear Core | -8/Recycling | Hacked Adv. Signal Interpreter | -6/Extension | Hacked Hyp. Coil Gun | -6/Extension | Hacked Robot Schematics ------------------ S-10 Pest | -8/Recycling | Hacked Fabricated ------------ T-07 Excavator | x2 | -6/Factory | Preloaded Alien Tech Used ----------------- None Achievements -------------- None Challenges ------------ None Game ------ Seed MetaScatterCleaver Manual? 0 Play Time 01:29:56 Cumulative 248.4 hours Start 2024.10.14 @ 05:15:29 End 2024.10.15 @ 02:41:14 Sessions 3 Manual Loads 0 Difficulty Rogue Special Mode None Game No. 192 Rogue 183 Adventurer 9 Explorer 0 Win Type - Total 1 Types 1/0/0/0/0/0/0/0/0 Lore% 81 Gallery% 75 Achievement% 62 Wizard Run 0 Options --------- Layout 1 ASCII 0 Keyboard 0 Movement Numpad Keybinds 0 Fullscreen 1 Font 24/Smallcaps Map View 50x35 Zoom Use 0% Tactical HUD 1 Map Filters NONE Filters NONE Steam 1 RUN: 6957033d-6c8a-44fc-9350-9b662489b9ce